fUSD/lending_fUSD_20240116
["ID","MTS","AMOUNT","RATE_DAILY","PERIOD"]
[311765732,1705381863381,-500.0,0.00022703,2]
[311765733,1705381863390,-624.61,0.00022703,2]
[311765734,1705381863400,-500.0,0.00022703,2]
[311765735,1705381863409,-500.0,0.00022703,2]
[311765736,1705381863418,-612.8,0.00022703,2]
[311765737,1705381863427,-434.42,0.00022717,2]
[311765738,1705381863436,-4954.74673709,0.00022736,2]
[311765739,1705381863445,-178.12,0.00022751,2]
[311765740,1705381863455,-153.0,0.00022766,2]
[311765741,1705381863464,-153.0,0.00022766,2]
[311765742,1705381863474,-159.67664272,0.0002277,2]
[311765743,1705381863483,-4173.0,0.00022776,2]
[311765744,1705381863492,-2904.0,0.00022776,2]
[311765745,1705381863502,-7371.504,0.00022776,2]
[311765746,1705381863511,-5575.0,0.00022776,2]
[311765747,1705381863522,-2282.792,0.00022776,2]
[311765748,1705381863531,-8115.302,0.00022776,2]
[311765749,1705381863541,-27218.423,0.00022776,2]
[311765750,1705381863550,-19761.562,0.00022776,2]
[311765751,1705381863559,-1032.255,0.00022776,2]
[311765752,1705381863569,-257.349,0.00022776,2]
[311765753,1705381863578,-1237.9937315,0.00022791,2]
[311765754,1705381864169,-280.0,0.00022791,2]
[311765755,1705381864602,162.51772118,0.00022051,2]
[311765756,1705381864912,-500.0,0.00022427,2]
[311765757,1705381864922,-500.0,0.00022701,2]
[311765758,1705381864931,-748.42311518,0.00022791,2]
[311765759,1705381865135,280.16,0.00021464,2]
[311765760,1705381865247,-500.0,0.00022152,2]
[311765761,1705381865257,-731.56859817,0.00022791,2]
[311765762,1705381866361,-546.18,0.00022154,2]
[311765763,1705381866372,-68.11174979,0.00022442,2]
[311765764,1705381866429,-212.04825021,0.00022442,2]
[311765765,1705381866441,-440.16112798,0.00022791,2]
[311765766,1705381866458,-1516.60016426,0.00022791,2]
[311765767,1705381866469,-500.0,0.00022815,2]
[311765768,1705381866480,-200.0,0.00022815,2]
[311765769,1705381866491,-200.0,0.00022815,2]
[311765770,1705381866501,-800.0,0.00022815,2]
[311765771,1705381866510,-800.0,0.00022816,2]
[311765772,1705381866520,-500.0,0.00022816,2]
[311765773,1705381866530,-500.0,0.00022816,2]
[311765774,1705381866540,-800.0,0.00022816,2]
[311765775,1705381866549,-800.0,0.00022816,2]
[311765776,1705381866559,-800.0,0.00022816,2]
[311765777,1705381866569,-500.0,0.00022821,2]
[311765778,1705381866581,-500.0,0.0002283,2]
[311765779,1705381866591,-500.0,0.00022831,2]
[311765780,1705381866601,-31319.26909347,0.00022832,2]
[311765781,1705381866613,-411.7493109,0.00022832,2]
[311765782,1705381866625,-5641.79,0.00022832,2]
[311765783,1705381867635,-411.06267295,0.00022152,2]
[311765784,1705381867726,-214.08732705,0.00022152,2]
[311765785,1705381867737,-500.0,0.00022152,2]
[311765786,1705381867748,-500.0,0.00022153,2]
[311765787,1705381867758,-162.51772118,0.00022307,2]
[311765788,1705381867768,-500.0,0.00022426,5]
[311765789,1705381867778,-500.0,0.00022427,2]
[311765790,1705381867788,-533.34004847,0.00022832,2]
[311765791,1705381867801,-276.90558802,0.00022832,2]
[311765792,1705381867813,-900.15046863,0.00022832,2]
[311765793,1705381867826,-3778.27104873,0.00022832,2]
[311765794,1705381867838,-500.0,0.00022838,2]
[311765795,1705381867849,-1703.70973848,0.00022845,2]
[311765796,1705381867861,-3251.03699861,0.00022845,2]
[311765797,1705381867871,-500.0,0.00022847,2]
[311765798,1705381867882,-514.08286243,0.00022848,2]
[311765799,1705381867892,-500.0,0.00022856,2]
[311765800,1705381867902,-500.0,0.00022865,2]
[311765801,1705381867913,-178.12,0.00022866,2]
[311765802,1705381867923,-207.0,0.00022868,2]
[311765803,1705381867933,-500.0,0.00022874,2]
[311765804,1705381867944,-1357.0,0.00022879,2]
[311765805,1705381867954,-984.0,0.00022879,2]
[311765806,1705381867964,-3038.0,0.00022879,2]
[311765807,1705381867977,-1853.0,0.00022879,2]
[311765808,1705381867987,-840.0,0.00022879,2]
[311765809,1705381867999,-1258.764,0.00022879,2]
[311765810,1705381868009,-227.179,0.00022879,2]
[311765811,1705381868020,-1241.138,0.00022879,2]
[311765812,1705381868029,-1933.0,0.00022879,2]
[311765813,1705381868039,-595.419,0.00022879,2]
[311765814,1705381868049,-426.0,0.00022879,2]
[311765815,1705381868059,-1000.6,0.00022879,2]
[311765816,1705381868069,-878.0,0.00022879,2]
[311765817,1705381868079,-236.42,0.00022879,2]
[311765818,1705381868090,-509.51,0.00022879,2]
[311765819,1705381868099,-434.344,0.00022879,2]
[311765820,1705381868110,-500.0,0.00022882,2]
[311765821,1705381868120,-1000.0,0.00022887,2]
[311765822,1705381868130,-3700.92856132,0.00022887,4]
[311765823,1705381868140,-273.23265285,0.00022887,2]
[311765824,1705381868150,-3689.06234021,0.00022888,2]
[311765825,1705381868162,-28450.94655559,0.00022888,2]
[311765826,1705381868177,-1434.02773215,0.00022888,2]
[311765827,1705381868668,-60641.25880502,0.00022888,2]
[311765828,1705381868678,-437.92491375,0.00022888,2]
[311765829,1705381868688,-151.0,0.00022889,2]
[311765830,1705381868699,-151.0,0.00022889,2]
[311765831,1705381868710,-151.0,0.00022889,7]
[311765832,1705381868719,-151.0,0.00022889,7]
[311765833,1705381868729,-151.0,0.00022889,7]
[311765834,1705381868739,-182.761681,0.00022889,7]
[311765835,1705381868749,-151.0,0.00022889,7]
[311765836,1705381868759,-53826.26304069,0.00022889,2]
[311765837,1705381868772,-550.25133661,0.00022889,2]
[311765838,1705381868789,-1069.70105108,0.00022889,2]
[311765839,1705381869267,-1959.89150662,0.00022889,2]
[311765840,1705381869280,-21509.73880419,0.00022889,2]
[311765842,1705381878091,361.536,0.00022052,2]
[311765843,1705381905469,152.92,0.00021754,2]
[311765844,1705381905685,152.92,0.00021971,2]
[311765845,1705381908131,163.5,0.00021934,2]
[311765846,1705381922188,3189.53192439,0.00021971,2]
[311765847,1705381933313,192.1,0.00019749,2]
[311765848,1705381933529,192.1,0.00022013,2]
[311765849,1705381944133,3189.53192439,0.00021969,2]
[311765850,1705381956362,250.0,0.00021918,2]
[311765851,1705381960138,3189.53192439,0.00021969,2]
[311765852,1705381978137,962.20564968,0.00021969,2]
[311765853,1705381981290,539.92,0.0002168,2]
[311765854,1705381983796,23900.0,0.0002168,2]
[311765855,1705381995760,2000.0,0.00021677,2]
[311765856,1705382053173,7668.0844,0.00022053,2]
[311765862,1705382128973,234.22,0.00021611,2]
[311765863,1705382156805,2109.39869412,0.00021486,2]
[311765864,1705382165225,3041.61,0.00021612,2]
[311765865,1705382179422,500.0,0.00021592,2]
[311765866,1705382190696,1826.62,0.00021579,2]
[311765867,1705382192183,200.0,0.00021579,2]
[311765868,1705382237043,189.78,0.00021562,2]
[311765869,1705382303642,749.5,0.00021569,2]
[311765870,1705382319426,3783.97,0.00021569,2]
[311765871,1705382323694,500.0,0.00021569,2]
[311765872,1705382324047,250.0,0.00021569,2]
[311765873,1705382331189,200.0,0.00021566,2]
[311765874,1705382334984,264.30835049,0.00021426,2]
[311765875,1705382359755,637.18,0.00021558,2]
[311765876,1705382389022,162.81,0.00021551,2]
[311765877,1705382389248,162.81,0.00021821,2]
[311765878,1705382389482,162.81,0.0002209,2]
[311765879,1705382391443,1900.58,0.00021551,2]
[311765880,1705382403619,568.06,0.00021526,2]
[311765881,1705382424578,185.27,0.00019589,2]
[311765882,1705382424968,285.12,0.00021507,2]
[311765883,1705382425019,185.27,0.00021853,2]
[311765884,1705382428123,398.39755481,0.00022052,2]
[311765885,1705382451570,250.0,0.00021918,2]
[311765886,1705382473020,302.08,0.000221,2]
[311765887,1705382474894,151.79,0.00021609,2]
[311765888,1705382483676,3009.23,0.00021918,2]
[311765889,1705382512012,356.97199554,0.000221,2]
[311765890,1705382585500,351.33,0.00021452,2]
[311765891,1705382590888,5316.06,0.00021452,2]
[311765892,1705382626810,2705.0,0.00021436,2]
[311765893,1705382644114,207.0,0.00021822,2]
[311765894,1705382719458,1852.42,0.00021472,2]
[311765895,1705382721085,3996.1660824,0.000221,2]
[311765896,1705382752468,1126.17748716,0.00021822,2]
[311765897,1705382757225,467.0702229,0.000221,2]
[311765898,1705382770862,213.01898053,0.00021485,2]
[311765899,1705382772402,200.0,0.00021442,2]
[311765900,1705382808385,2155.43,0.00021464,2]
[311765901,1705382811700,150.0,0.00021464,2]
[311765902,1705382819891,299.77,0.00021474,2]
[311765903,1705382820141,327.79382474,0.00022049,2]
[311765904,1705382822746,250.0,0.00021474,2]
[311765905,1705382825144,327.79382468,0.00022062,2]
[311765906,1705382830535,327.79382468,0.00022075,2]
[311765907,1705382835128,327.79382468,0.00022089,2]
[311765908,1705382856226,164.25,0.00021646,2]
[311765909,1705382858422,401.23,0.0002141,2]
[311765910,1705382865567,545.55,0.0002138,2]
[311765911,1705382865747,370.30194109,0.00022051,2]
[311765912,1705382879874,153.95,0.00021334,2]
[311765913,1705382880127,153.95,0.00021486,2]
[311765914,1705382880336,153.95,0.00021639,2]
[311765915,1705382880594,153.95,0.00021791,2]
[311765916,1705382880691,172.61,0.00021334,10]
[311765917,1705382880792,153.95,0.00021943,2]
[311765918,1705382881002,153.95,0.00022096,2]
[311765919,1705382885139,2000.0,0.00021308,2]
[311765923,1705382917257,250.0,0.00021918,2]
[311765929,1705382934275,250.0,0.000214,2]
[311765930,1705382947294,4482.11,0.00021277,2]
[311765931,1705382949460,176.23,0.000214,2]
[311765932,1705382950781,330.67489988,0.00021948,2]
[311765933,1705382958834,351.8675359,0.0003,90]
[311765934,1705382975504,273.1533686,0.000214,2]
[311765935,1705382979564,158.47,0.00021436,2]
[311765936,1705382985767,180.0,0.00026,27]
[311765937,1705383014103,351.33,0.00021277,2]
[311765938,1705383024088,807.17433921,0.00022051,2]
[311765946,1705383032274,-327.79382468,0.00022102,2]
[311765947,1705383032284,-327.79382468,0.00022115,2]
[311765948,1705383032293,-327.79382468,0.00022128,2]
[311765949,1705383032302,-327.79382468,0.00022141,2]
[311765950,1705383032312,-6.59020936,0.00022148,2]
[311765951,1705383032444,-3648.21150576,0.00022148,2]
[311765952,1705383032454,-300.0,0.00022148,2]
[311765953,1705383032463,-150.0,0.00022148,2]
[311765954,1705383032472,-150.0,0.00022148,2]
[311765955,1705383032482,-1044.13037654,0.00022149,2]
[311765956,1705383032491,-398.76009125,0.00022149,2]
[311765957,1705383032501,-196.54647125,0.00022149,2]
[311765958,1705383032510,-332.57743167,0.00022149,2]
[311765959,1705383032520,-219.48369234,0.00022149,2]
[311765960,1705383032529,-164.5474137,0.00022149,2]
[311765961,1705383032539,-1312.84936448,0.00022149,2]
[311765962,1705383032549,-291.4531934,0.00022149,2]
[311765963,1705383032558,-220.25566127,0.00022149,2]
[311765964,1705383032567,-5428.16343677,0.0002215,2]
[311765965,1705383032576,-2285.87837173,0.0002215,2]
[311765966,1705383032586,-1627.95,0.0002215,2]
[311765967,1705383032595,-2529.5,0.0002215,2]
[311765968,1705383032605,-500.0,0.0002215,2]
[311765969,1705383032614,-500.0,0.0002215,2]
[311765970,1705383032623,-1309.8,0.0002215,2]
[311765971,1705383032633,-500.0,0.0002215,2]
[311765972,1705383032643,-872.63,0.0002215,2]
[311765973,1705383032653,-836.47,0.0002215,2]
[311765974,1705383032662,-938.61,0.0002215,2]
[311765975,1705383032672,-525.25,0.0002215,2]
[311765976,1705383032682,-2222.71,0.0002215,2]
[311765977,1705383032691,-10509.43,0.0002215,2]
[311765978,1705383032701,-1048.87,0.0002215,2]
[311765979,1705383032711,-848.1,0.0002215,2]
[311765980,1705383032720,-1061.7,0.0002215,2]
[311765981,1705383032730,-500.0,0.0002215,2]
[311765982,1705383032740,-1287.26,0.0002215,2]
[311765983,1705383032749,-964.13,0.0002215,2]
[311765984,1705383032758,-1652.3,0.0002215,2]
[311765985,1705383032768,-1188.67,0.0002215,2]
[311765986,1705383032778,-775.2,0.0002215,2]
[311765987,1705383032788,-2387.88,0.0002215,2]
[311765988,1705383032798,-756.11,0.0002215,2]
[311765989,1705383032807,-679.67,0.0002215,2]
[311765990,1705383032817,-500.0,0.0002215,2]
[311765991,1705383032826,-1264.48,0.0002215,2]
[311765992,1705383032838,-500.0,0.0002215,2]
[311765993,1705383032851,-500.0,0.0002215,2]
[311765994,1705383032867,-574.2,0.0002215,2]
[311765995,1705383032884,-500.0,0.0002215,2]
[311765996,1705383032894,-500.0,0.0002215,2]
[311765997,1705383032904,-500.0,0.0002215,2]
[311765998,1705383032913,-1500.73,0.0002215,2]
[311765999,1705383032922,-500.0,0.0002215,2]
[311766000,1705383032932,-500.0,0.0002215,2]
[311766001,1705383032941,-562.1,0.0002215,2]
[311766002,1705383032953,-500.0,0.0002215,2]
[311766003,1705383032964,-500.0,0.0002215,2]
[311766004,1705383032974,-840.92,0.00022151,2]
[311766005,1705383032984,-500.0,0.00022151,2]
[311766006,1705383032994,-500.0,0.00022151,2]
[311766007,1705383033004,-525.55,0.00022151,2]
[311766008,1705383033014,-800.42,0.00022151,2]
[311766009,1705383033023,-538.26,0.00022151,2]
[311766010,1705383033033,-500.0,0.00022151,2]
[311766011,1705383033042,-500.0,0.00022151,2]
[311766012,1705383033051,-621.5,0.00022151,2]
[311766013,1705383033061,-899.12,0.00022151,2]
[311766014,1705383033071,-500.0,0.00022151,2]
[311766015,1705383033082,-500.0,0.00022151,2]
[311766016,1705383033092,-524.18,0.00022151,2]
[311766017,1705383033101,-759.96,0.00022151,2]
[311766018,1705383033111,-626.89,0.00022151,2]
[311766019,1705383033120,-578.09,0.00022151,2]
[311766020,1705383033129,-889.88,0.00022151,2]
[311766021,1705383033138,-500.0,0.00022151,2]
[311766022,1705383033148,-533.73,0.00022151,2]
[311766023,1705383033157,-501.67,0.00022151,2]
[311766024,1705383033167,-500.0,0.00022151,2]
[311766025,1705383033176,-681.02,0.00022151,2]
[311766026,1705383033185,-1225.16,0.00022151,2]
[311766027,1705383033195,-500.0,0.00022151,2]
[311766028,1705383033204,-500.0,0.00022151,2]
[311766029,1705383033213,-500.0,0.00022151,2]
[311766030,1705383033223,-500.0,0.00022151,2]
[311766031,1705383033235,-700.6,0.00022151,2]
[311766032,1705383033244,-500.0,0.00022151,2]
[311766033,1705383033254,-667.96,0.00022151,2]
[311766034,1705383033263,-768.52,0.00022151,2]
[311766035,1705383033272,-797.78,0.00022151,2]
[311766036,1705383033282,-500.0,0.00022151,2]
[311766037,1705383033291,-582.49,0.00022151,2]
[311766038,1705383033301,-693.9,0.00022151,2]
[311766039,1705383033310,-583.52,0.00022151,2]
[311766040,1705383033319,-1102.15,0.00022151,2]
[311766041,1705383033329,-500.0,0.00022151,2]
[311766042,1705383033338,-500.0,0.00022151,2]
[311766043,1705383033348,-533.28,0.00022151,2]
[311766044,1705383033358,-1290.48,0.00022151,2]
[311766045,1705383033367,-500.0,0.00022151,2]
[311766046,1705383033377,-500.0,0.00022151,2]
[311766047,1705383033386,-607.47,0.00022151,2]
[311766048,1705383033396,-505.49,0.00022151,2]
[311766049,1705383033405,-500.0,0.00022151,2]
[311766050,1705383033414,-500.0,0.00022151,2]
[311766051,1705383033424,-603.94,0.00022151,2]
[311766052,1705383033433,-624.26,0.00022151,2]
[311766053,1705383033443,-500.0,0.00022151,2]
[311766054,1705383033453,-500.0,0.00022151,2]
[311766055,1705383033462,-680.56,0.00022151,2]
[311766056,1705383033473,-500.0,0.00022151,2]
[311766057,1705383033482,-556.91,0.00022151,2]
[311766058,1705383033492,-2434.22,0.00022151,2]
[311766059,1705383033501,-500.1,0.00022151,2]
[311766060,1705383033511,-717.85,0.00022151,2]
[311766061,1705383033521,-1073.93,0.00022151,2]
[311766062,1705383033531,-500.0,0.00022151,2]
[311766063,1705383033541,-500.0,0.00022151,2]
[311766064,1705383033550,-685.71,0.00022151,2]
[311766065,1705383033560,-658.67,0.00022151,2]
[311766066,1705383033570,-500.0,0.00022151,2]
[311766067,1705383033579,-543.44,0.00022151,2]
[311766068,1705383033589,-500.0,0.00022151,2]
[311766069,1705383033599,-722.03,0.00022151,2]
[311766070,1705383033609,-500.0,0.00022151,2]
[311766071,1705383033618,-500.0,0.00022151,2]
[311766072,1705383033628,-500.0,0.00022151,2]
[311766073,1705383033637,-715.68,0.00022151,2]
[311766074,1705383033647,-1026.53,0.00022151,2]
[311766075,1705383033656,-500.0,0.00022151,2]
[311766076,1705383033665,-500.0,0.00022151,2]
[311766077,1705383033675,-1065.96,0.00022151,2]
[311766078,1705383033684,-524.36,0.00022151,2]
[311766079,1705383033694,-555.64,0.00022151,2]
[311766080,1705383033704,-500.0,0.00022151,2]
[311766081,1705383033713,-564.74,0.00022151,2]
[311766082,1705383033723,-910.51,0.00022151,2]
[311766083,1705383033732,-584.67,0.00022151,2]
[311766084,1705383033742,-923.67,0.00022151,2]
[311766085,1705383033751,-500.0,0.00022151,2]
[311766086,1705383033760,-539.76,0.00022151,2]
[311766087,1705383033770,-699.35,0.00022151,2]
[311766088,1705383033779,-500.0,0.00022151,2]
[311766089,1705383033789,-759.27,0.00022151,2]
[311766090,1705383033798,-500.0,0.00022151,2]
[311766091,1705383033808,-756.95,0.00022151,2]
[311766092,1705383033818,-652.12,0.00022151,2]
[311766093,1705383033828,-500.0,0.00022151,2]
[311766094,1705383033837,-545.03,0.00022151,2]
[311766095,1705383033848,-500.0,0.00022151,2]
[311766096,1705383033857,-1032.63,0.00022151,2]
[311766097,1705383033866,-552.69,0.00022151,2]
[311766098,1705383033876,-940.02,0.00022151,2]
[311766099,1705383033885,-525.16,0.00022151,2]
[311766100,1705383033895,-1761.56,0.00022151,2]
[311766101,1705383033904,-500.0,0.00022151,2]
[311766102,1705383033914,-500.0,0.00022151,2]
[311766103,1705383033923,-500.0,0.00022151,2]
[311766104,1705383033932,-625.0,0.00022151,2]
[311766105,1705383033942,-603.57,0.00022151,2]
[311766106,1705383033953,-500.0,0.00022151,2]
[311766107,1705383033963,-626.09,0.00022151,2]
[311766108,1705383033972,-542.48,0.00022151,2]
[311766109,1705383033982,-647.75,0.00022151,2]
[311766110,1705383033992,-950.65,0.00022151,2]
[311766111,1705383034001,-608.11,0.00022151,2]
[311766112,1705383034011,-500.0,0.00022151,2]
[311766113,1705383034020,-1399.39,0.00022151,2]
[311766114,1705383034029,-584.84,0.00022151,2]
[311766115,1705383034039,-551.09,0.00022151,2]
[311766116,1705383034049,-605.76,0.00022151,2]
[311766117,1705383034058,-750.53,0.00022151,2]
[311766118,1705383034067,-733.52,0.00022151,2]
[311766119,1705383034077,-500.0,0.00022151,2]
[311766120,1705383034086,-567.35,0.00022151,2]
[311766121,1705383034096,-500.0,0.00022151,2]
[311766122,1705383034105,-511.15,0.00022151,2]
[311766123,1705383034115,-500.0,0.00022151,2]
[311766124,1705383034124,-500.0,0.00022151,2]
[311766125,1705383034133,-251.57995496,0.00022151,2]
[311766126,1705383034150,-248.42004504,0.00022151,2]
[311766127,1705383034249,-36.57995496,0.00022151,2]
[311766128,1705383034276,-308.5094613,0.0002215,2]
[311766130,1705383038275,-191.4905387,0.0002215,2]
[311766131,1705383038284,-462.18847391,0.0002215,2]
[311766132,1705383038395,-37.81152609,0.0002215,2]
[311766133,1705383038405,-500.0,0.0002215,2]
[311766134,1705383038414,-70.25119141,0.0002215,2]
[311766135,1705383038425,-2912.12679887,0.0002215,2]
[311766136,1705383038458,-510.75200972,0.0002215,2]
[311766137,1705383038467,-500.0,0.0002215,2]
[311766138,1705383038477,-860.09004504,0.00022151,2]
[311766139,1705383038487,-500.0,0.00022151,2]
[311766140,1705383038496,-566.06,0.00022151,2]
[311766141,1705383038506,-534.17,0.00022151,2]
[311766142,1705383038515,-510.1,0.00022151,2]
[311766143,1705383038525,-500.0,0.00022151,2]
[311766144,1705383038535,-1150.59,0.00022151,2]
[311766145,1705383038544,-500.0,0.00022151,2]
[311766146,1705383038553,-607.53,0.00022151,2]
[311766147,1705383038562,-500.02,0.00022151,2]
[311766149,1705383038572,-500.0,0.00022151,2]
[311766151,1705383038581,-599.45,0.00022151,2]
[311766153,1705383038591,-500.0,0.00022151,2]
[311766155,1705383038600,-500.0,0.00022151,2]
[311766157,1705383038609,-500.0,0.00022151,2]
[311766159,1705383038619,-1704.54,0.00022151,2]
[311766161,1705383038628,-569.71,0.00022151,2]
[311766163,1705383038637,-651.57,0.00022151,2]
[311766165,1705383038647,-500.0,0.00022151,2]
[311766167,1705383038656,-500.0,0.00022151,2]
[311766169,1705383038666,-500.0,0.00022151,2]
[311766170,1705383038675,-500.0,0.00022151,2]
[311766171,1705383038685,-1007.89,0.00022151,2]
[311766173,1705383038695,-500.0,0.00022151,2]
[311766175,1705383038704,-2097.75,0.00022151,2]
[311766177,1705383038714,-1086.83,0.00022151,2]
[311766180,1705383038723,-500.0,0.00022151,2]
[311766182,1705383038732,-839.49,0.00022151,2]
[311766184,1705383038741,-500.0,0.00022151,2]
[311766186,1705383038751,-4806.86,0.00022151,2]
[311766188,1705383038760,-3952.88,0.00022151,2]
[311766190,1705383038770,-500.0,0.00022151,2]
[311766191,1705383038778,-500.0,0.00022151,2]
[311766193,1705383038787,-500.0,0.00022151,2]
[311766195,1705383038797,-500.0,0.00022151,2]
[311766196,1705383038806,-6309.47,0.00022151,2]
[311766197,1705383038815,-1002.55,0.00022151,2]
[311766198,1705383038824,-3666.17,0.00022151,2]
[311766200,1705383038833,-6082.26,0.00022151,2]
[311766202,1705383038843,-500.0,0.00022151,2]
[311766204,1705383038852,-197.57,0.00022151,2]
[311766206,1705383038861,-565.77,0.00022151,2]
[311766208,1705383038870,-525.75,0.00022151,2]
[311766210,1705383038879,-2891.32,0.00022151,2]
[311766212,1705383038888,-868.6,0.00022151,2]
[311766214,1705383038898,-513.19,0.00022151,2]
[311766216,1705383038907,-1150.74,0.00022151,2]
[311766218,1705383038917,-7786.74,0.00022151,2]
[311766220,1705383038926,-500.0,0.00022151,2]
[311766222,1705383038935,-500.0,0.00022151,2]
[311766224,1705383038945,-500.0,0.00022151,2]
[311766226,1705383038956,-917.77,0.00022151,2]
[311766227,1705383038966,-827.15,0.00022151,2]
[311766230,1705383038976,-821.94,0.00022151,2]
[311766231,1705383038985,-2688.94,0.00022151,2]
[311766233,1705383038995,-3144.26,0.00022151,2]
[311766235,1705383039005,-1433.0,0.00022151,2]
[311766251,1705383039152,-6675.08,0.00022151,2]
[311766253,1705383039164,-521.33,0.00022151,2]
[311766255,1705383039174,-680.65,0.00022151,2]
[311766257,1705383039183,-500.0,0.00022151,2]
[311766259,1705383039192,-629.69,0.00022151,2]
[311766261,1705383039201,-2916.88,0.00022151,2]
[311766263,1705383039210,-10322.79,0.00022151,2]
[311766265,1705383039219,-1131.72,0.00022151,2]
[311766267,1705383039228,-504.31,0.00022151,2]
[311766269,1705383039237,-598.95,0.00022151,2]
[311766271,1705383039246,-2190.16,0.00022151,2]
[311766273,1705383039256,-653.33,0.00022151,2]
[311766275,1705383039265,-867.43,0.00022151,2]
[311766277,1705383039274,-534.16,0.00022151,2]
[311766279,1705383039283,-881.84,0.00022151,2]
[311766281,1705383039294,-500.0,0.00022151,2]
[311766283,1705383039303,-4882.41,0.00022151,2]
[311766285,1705383039311,-722.11,0.00022151,2]
[311766287,1705383039320,-650.93,0.00022151,2]
[311766288,1705383039330,-716.19,0.00022151,2]
[311766291,1705383039342,-971.89,0.00022151,2]
[311766292,1705383039351,-983.83,0.00022151,2]
[311766294,1705383039360,-2291.44,0.00022151,2]
[311766297,1705383039370,-570.84,0.00022151,2]
[311766298,1705383039379,-1325.21,0.00022151,2]
[311766300,1705383039388,-500.0,0.00022151,2]
[311766302,1705383039398,-17724.81,0.00022151,2]
[311766304,1705383039408,-500.0,0.00022151,2]
[311766306,1705383039418,-2686.28,0.00022151,2]
[311766308,1705383039427,-500.0,0.00022151,2]
[311766310,1705383039437,-1509.48,0.00022151,2]
[311766312,1705383039446,-500.0,0.00022151,2]
[311766314,1705383039455,-531.74,0.00022151,2]
[311766316,1705383039464,-1420.14,0.00022151,2]
[311766318,1705383039474,-500.0,0.00022151,2]
[311766320,1705383039483,-562.22,0.00022151,2]
[311766322,1705383039492,-1338.83,0.00022151,2]
[311766324,1705383039502,-500.0,0.00022151,2]
[311766326,1705383039510,-500.0,0.00022151,2]
[311766328,1705383039522,-500.0,0.00022151,2]
[311766330,1705383039531,-600.31,0.00022151,2]
[311766333,1705383039541,-1001.26,0.00022151,2]
[311766335,1705383039551,-500.0,0.00022151,2]
[311766336,1705383039560,-500.0,0.00022151,2]
[311766338,1705383039570,-1028.34,0.00022151,2]
[311766341,1705383039579,-3405.23,0.00022151,2]
[311766342,1705383039591,-1111.47,0.00022151,2]
[311766344,1705383039601,-5668.78,0.00022151,2]
[311766346,1705383039610,-500.0,0.00022151,2]
[311766348,1705383039620,-891.17,0.00022151,2]
[311766350,1705383039629,-2165.49,0.00022151,2]
[311766352,1705383039638,-500.0,0.00022151,2]
[311766354,1705383039647,-500.0,0.00022151,2]
[311766356,1705383039656,-500.0,0.00022151,2]
[311766358,1705383039666,-737.48,0.00022151,2]
[311766360,1705383039675,-1077.7,0.00022151,2]
[311766362,1705383039684,-1237.24,0.00022151,2]
[311766364,1705383039693,-647.95,0.00022151,2]
[311766366,1705383039703,-624.54,0.00022151,2]